{"text_format":"1","workbook":"xlsx","n_sheets":8,"sheets":["INTRO","COMPETITIVE ALTERNATIVES","COMPETITIVE TECHNOLOGIES","COMPETITIVE IP & PROJECTS","OVERALL","GR_MARKET","GR_OVERALL","GR_TECH"],"not_rendered":{"charts":6,"images":2,"macros":1,"external_links":0,"defined_names":11,"comments":0,"pivot_tables":0},"unopened":[{"sheet":"GR_MARKET","index":5,"reason":"not_a_worksheet"},{"sheet":"GR_OVERALL","index":6,"reason":"not_a_worksheet"},{"sheet":"GR_TECH","index":7,"reason":"not_a_worksheet"}],"bounds":{"document_bytes":16777216,"sheet_cells":100000,"rows_first":2000,"rows_last":500,"rows_between":2000,"halvings":0,"cell_chars":16384,"cell_head_chars":4096},"cells_cut":0,"cells_raw":0,"read":"whole","date_system":"1900"}

{"sheet":"INTRO","index":0,"n_rows":29,"n_cols":6,"rows_kept":29,"cut":false,"hidden":false,"merged":[[19,4,19,7],[20,4,20,7],[2,3,3,6],[11,2,11,8],[22,2,22,8],[30,4,30,7],[32,4,32,7],[8,2,9,8],[26,4,26,7],[24,4,24,7],[28,4,28,7],[18,4,18,7]]}
[]
[]
[null,null,null,"MARKET ANALYSIS AND COMPETITORS"]
[]
[]
[]
[null,null,"VERSION","1.0",null,"© ACCESS4SMEs PROJECT REF. H2020-723120"]
[]
[null,null,"Disclaimer:  This excel sheet is generated for the free use for H2020 participants. The project decline any responsibility for its incorrect use or for any conclusions obtained with its use."]
[]
[]
[null,null,"INPUTS"]
[]
[null,null,"PRODUCT/SERVICE",null,"my product"]
[]
[null,null,"COMPANY NAME",null,"My company"]
[]
[]
[null,null,"COMPETITIVE ALTERNATIVES",null,"This sheet will help you to build a systematic comparison with the current competitive alternatives available in the market for your solution."]
[null,null,"COMPETITIVE TECHNOLOGIES",null,"This sheet will help you to compare your technology with other potential technologies solving your same need (either already in place or still under development)"]
[null,null,"COMPETITIVE IP& PROJECT",null,"This sheet will help you to collect IP or R&D project aiming to develop alternatives to your product in the mid-term. "]
[]
[null,null," GRAPHICAL OUTPUTS"]
[]
[null,null,"GR_OVERALL",null,"This graphic summarizes your competitive landscape including current alternatives, emerging technologies and future solutions already within the R&D domain"]
[]
[null,null,"GR_MARKET",null,"This figure summarizes the competition in your market, based on the market share and its relevance based on your competitors strategies"]
[]
[null,null,"GR_TECHOLOGY",null,"This figure summarizes the technological status based on its availability and potential transferability to your market"]

{"sheet":"COMPETITIVE ALTERNATIVES","index":1,"n_rows":45,"n_cols":12,"rows_kept":45,"cut":false,"hidden":false,"merged":[[16,1,16,2],[31,1,31,2],[1,1,1,2]]}
[]
[null,"COMPETITORS LANDSCAPE"]
[]
[null,null,"Product/service name","Relevance","Company name","Validation status","Size","Turnover (M€)","Market share (%)","Private funds (M€)","Country"]
[null,null,"Insert the names of the commercial product-service you would like to compare","How relevant is this solution in their overall portfolio of product? ","Insert the names of the companies commercializing each solution","Define the current level of validation of this product/service for your market (research level, lab level, demo level, industrially relevant level, commercial scale)","Which is the size of the company (SME, midcap, large enterprise, large multinational)","What is the last year turnover of this company?","What is the market share of this company for this solution?","How much private funds has this company raise if any","Headquarters location of the company"]
[null,1,{"$f":"INTRO!E14","v":"my product"},10,{"$f":"INTRO!E16","v":"My company"},"INDUSTRIALLY RELEVANT LEVEL (TRL7-8)",null,1,15,null,null,"size"]
[null,{"$f":"B6+1","v":2},"A",9,"A","DEMO LEVEL (TRL6)",null,10,0.5,null,null,"SME"]
[null,{"$f":"B7+1","v":3},"B",7,"B","INDUSTRIALLY RELEVANT LEVEL (TRL7-8)",null,0.5,10,null,null,"midcap"]
[null,4,"C",8,"C","DEMO LEVEL (TRL6)",null,5,15,null,null,"Large enterprise"]
[null,5,"D",8,"D","COMMERCIAL SCALE (TRL9)",null,30,10]
[null,6,"E",3,"E","COMMERCIAL SCALE (TRL9)",null,100,40]
[null,7,"F",4,"F","INDUSTRIALLY RELEVANT LEVEL (TRL7-8)",null,10,2]
[null,8,"G",3,"G","INDUSTRIALLY RELEVANT LEVEL (TRL7-8)",null,5,15]
[null,9,"H",8,"H","COMMERCIAL SCALE (TRL9)",null,0.5,5]
[null,10,"I",5,"I","COMMERCIAL SCALE (TRL9)",null,5,25]
[]
[null,"COMPETITORS OFFERING"]
[]
[null,null,"Product/service name","Company name","Business model","Key Message","Blog","Social networks","Last opening","Events presence",null,"CERO_A_DIEZ"]
[null,null,"Insert the names of the commercial product-service you would like to compare","Insert the names of the companies commercializing each solution","Insert the business model applied for this solution by the different companies","Which is the key message used in their marketing campaigns linked to this solution?","What are the keywords they use to comment in their blog (if they have it)?","Do they have an strong presence in social networks?  Followers, youtube channel,…","Where and when did they open their last center, space, office…?","Where is the last conference they attended to present the solution?",null,0]
[null,1,{"$f":"C6","v":"my product"},{"$f":"E6","v":"My company"},null,null,null,null,null,null,null,1]
[null,{"$f":"B21+1","v":2},{"$f":"C7","v":"A"},"A",null,null,null,null,null,null,null,2]
[null,{"$f":"B22+1","v":3},"B","B",null,null,null,null,null,null,null,3]
[null,4,"C","C",null,null,null,null,null,null,null,4]
[null,5,"D","D",null,null,null,null,null,null,null,5]
[null,6,"E","E",null,null,null,null,null,null,null,6]
[null,7,"F","F",null,null,null,null,null,null,null,7]
[null,8,"G","G",null,null,null,null,null,null,null,8]
[null,9,"H","H",null,null,null,null,null,null,null,9]
[null,10,"I","I",null,null,null,null,null,null,null,10]
[]
[null,"COMPETITOR OPERATIONS"]
[]
[null,null,"Product/service name","Pricing model","Price","Cost","Cost structure","Delivery method","Internacional reach","Known clients"]
[null,null,"Insert the names of the commercial product-service you would like to compare","Define how the  price is set and your revenue stream logic (i.e. a fee, a subscription, a sale, an aftersales contract…","Define in EUROS the average price of the solution","Define in EUROS the average cost of the solution","Define the cost structure behind this average cost","Define how each solution reach their target clients (own forces, distribution channels,…)","Define how and if the solution already reach international markets and where (EU, LATAM, US…)","Identify 2-3 key clients already using this solution"]
[null,1,{"$f":"C21","v":"my product"}]
[null,{"$f":"B36+1","v":2},{"$f":"C22","v":"A"}]
[null,3,"B"]
[null,4,"C"]
[null,5,"D"]
[null,6,"E"]
[null,7,"F"]
[null,8,"G"]
[null,9,"H"]
[null,10,"I"]

{"sheet":"COMPETITIVE TECHNOLOGIES","index":2,"n_rows":45,"n_cols":8,"rows_kept":45,"cut":false,"hidden":false,"merged":[[0,1,0,2],[31,1,31,2],[15,1,15,2],[15,6,15,7]]}
[null,"COMMERCIAL RELEVANCE TECH"]
[]
[null,null,"Technology name","Relevance","Availability","Transferability","Barriers","Drivers"]
[null,null,"Insert the names of the technology worth to compare","Define it in decreasing order","Define the degree of availability of this technology in other sectors or domains","Define the degree of direct transferability from other sectors to your market","Define the main barriers to ensure quick success of the technology in your market","Define the main drivers that will help to boost this technology in your market"]
[null,1,"A",10]
[null,{"$f":"B5+1","v":2},"B",{"$f":"D5-1","v":9}]
[null,{"$f":"B6+1","v":3},"C",{"$f":"D6-1","v":8}]
[null,4,"D",7]
[null,5,"E",6]
[null,6,"F",5]
[null,7,"G",4]
[null,8,"H",3]
[null,9,"I",2]
[null,10,"J",1]
[]
[null,"COMMERCIAL RELEVANCE",null,null,"RELATIVE"]
[]
[null,null,"Technology name","Availability","Transferability","Validation status"]
[null,null,"Insert the names of the technology worth to compare","Define the degree of availability of this technology in other sectors or domains","Define the degree of direct transferability from other sectors to your market","Define the current level of validation of this technology for your market (research level, lab level, demo level, industrially relevant level, commercial scale)"]
[null,1,{"$f":"C5","v":"A"},1,6,"INDUSTRIALLY RELEVANT LEVEL (TRL7-8)",null,"TRL"]
[null,{"$f":"B20+1","v":2},{"$f":"C6","v":"B"},2,7,"DEMO LEVEL (TRL6)",null,"RESEARCH LEVEL (Up to TRL4)"]
[null,3,"C",4,9,"LAB LEVEL (TRL5)",null,"LAB LEVEL (TRL5)"]
[null,4,"D",4,3,"DEMO LEVEL (TRL6)",null,"DEMO LEVEL (TRL6)"]
[null,5,"E",6,5,"DEMO LEVEL (TRL6)",null,"INDUSTRIALLY RELEVANT LEVEL (TRL7-8)"]
[null,6,"F",7,6,"LAB LEVEL (TRL5)",null,"COMMERCIAL SCALE (TRL9)"]
[null,7,"G",2,4,"LAB LEVEL (TRL5)"]
[null,8,"H",7,6,"DEMO LEVEL (TRL6)"]
[null,9,"I",8,9,"INDUSTRIALLY RELEVANT LEVEL (TRL7-8)"]
[null,10,"J",10,10,"LAB LEVEL (TRL5)"]
[]
[]
[null,"TECHNOLOGY \"FLAGHOLDERS\""]
[]
[null,null,"Technology name","Company name ","Country","Size","Private funds"]
[null,null,"Insert the names of the technology worth to compare","Company name owning or developing this technology","Headquearters location of the company","Which is the size of the company (SME, midcap, large enterprise, large multinational)","How much private funds has this company raise for this technology (if any) "]
[null,1,{"$f":"C5","v":"A"},{"$f":"INTRO!E16","v":"My company"}]
[null,{"$f":"B36+1","v":2},"B"]
[null,{"$f":"B37+1","v":3},"C"]
[null,4,"D"]
[null,5,"E"]
[null,6,"F"]
[null,7,"G"]
[null,8,"H"]
[null,9,"I"]
[null,10,"J"]

{"sheet":"COMPETITIVE IP & PROJECTS","index":3,"n_rows":30,"n_cols":12,"rows_kept":30,"cut":false,"hidden":false,"merged":[[1,1,1,2],[16,1,16,2]]}
[]
[null,"IP ASSETS"]
[]
[null,null,"IP asset","Technology","Relevance","Description","Coverage","Exploitation","Status","Owner","Company","What´s relevant"]
[null,null,"Insert the reference of the IP identified","Which technology is this IP based on? ","How relevant is this patent for your solution (order by higher relevance)","Describe briefly the scope","Describe the locations covered by the patent","Which TRL does the IP refer to? ","Describe its current status (filled, granted, expired…)","Define the owner of the IP?","Define which company has its exploitation rights","Why is relevant for your solution?"]
[null,1,"IP1",null,10,null,null,"DEMO LEVEL (TRL6)"]
[null,{"$f":"B6+1","v":2},"IP2",null,{"$f":"E6-1","v":9},null,null,"LAB LEVEL (TRL5)"]
[null,3,"IP3",null,{"$f":"E7-1","v":8},null,null,"DEMO LEVEL (TRL6)"]
[null,4,"IP4",null,7,null,null,"DEMO LEVEL (TRL6)"]
[null,5,"IP5",null,6,null,null,"INDUSTRIALLY RELEVANT LEVEL (TRL7-8)"]
[null,6,"IP6",null,5,null,null,"COMMERCIAL SCALE (TRL9)"]
[null,7,"IP7",null,4,null,null,"INDUSTRIALLY RELEVANT LEVEL (TRL7-8)"]
[null,8,"IP8",null,3,null,null,"INDUSTRIALLY RELEVANT LEVEL (TRL7-8)"]
[null,9,"IP9",null,2,null,null,"RESEARCH LEVEL (Up to TRL4)"]
[null,10,"IP10",null,1,null,null,"DEMO LEVEL (TRL6)"]
[]
[null,"PROJECTS"]
[]
[null,null,"Project reference","Technology","Relevance","Dates of execution","Type of funding","TRL level","Coordinator","key stakeholders","What's relevant"]
[null,null,"Insert the project identifier","Which technology is the project about? ","How relevant is this project for your solution (order by higher relevance)","What is the project timing (start-end date)?","Who fund the project? EU level, national level, regional level, private funding…","What is the TRL expected as output?","who is the coordinator entity?","Who else (relevant) is in the consortium (if applicable)","Why is relevant for your solution?"]
[null,1,"PROJECT 1",null,10,null,null,"DEMO LEVEL (TRL6)"]
[null,{"$f":"B21+1","v":2},"AA",null,{"$f":"E21-1","v":9},null,null,"RESEARCH LEVEL (Up to TRL4)"]
[null,3,"BB",null,{"$f":"E22-1","v":8},null,null,"RESEARCH LEVEL (Up to TRL4)"]
[null,4,"CC",null,7,null,null,"LAB LEVEL (TRL5)"]
[null,5,"DD",null,6,null,null,"DEMO LEVEL (TRL6)"]
[null,6,"EE",null,5,null,null,"INDUSTRIALLY RELEVANT LEVEL (TRL7-8)"]
[null,7,"FF",null,4,null,null,"COMMERCIAL SCALE (TRL9)"]
[null,8,"GG",null,3,null,null,"DEMO LEVEL (TRL6)"]
[null,9,"HH",null,2,null,null,"LAB LEVEL (TRL5)"]
[null,10,"II",null,1,null,null,"LAB LEVEL (TRL5)"]

{"sheet":"OVERALL","index":4,"n_rows":55,"n_cols":11,"rows_kept":55,"cut":false,"hidden":false,"merged":[]}
["OVERALL","Element","Nature","TRL level","Relevance",null,null,"TRL","TRL NUMBER","Relevance","Nature"]
[1,{"$f":"'COMPETITIVE ALTERNATIVES'!C6","v":"my product"},"Solutions",{"$f":"'COMPETITIVE ALTERNATIVES'!F6","v":"INDUSTRIALLY RELEVANT LEVEL (TRL7-8)"},{"$f":"'COMPETITIVE ALTERNATIVES'!D6","v":10},{"$f":"FIND(\"TRL\",D2,1)+3","v":33},{"$f":"B2","v":"my product"},{"$f":"MID(D2,F2,1)","v":"7"},{"$f":"VALUE(H2)","v":7},{"$f":"E2+0.4","v":10.4},{"$f":"C2","v":"Solutions"}]
[{"$f":"A2+1","v":2},{"$f":"'COMPETITIVE ALTERNATIVES'!C7","v":"A"},"Solutions",{"$f":"'COMPETITIVE ALTERNATIVES'!F7","v":"DEMO LEVEL (TRL6)"},{"$f":"'COMPETITIVE ALTERNATIVES'!D7","v":9},16,"A","6",6,{"$f":"E3+0.4","v":9.4},"Solutions"]
[3,{"$f":"'COMPETITIVE ALTERNATIVES'!C8","v":"B"},"Solutions",{"$f":"'COMPETITIVE ALTERNATIVES'!F8","v":"INDUSTRIALLY RELEVANT LEVEL (TRL7-8)"},{"$f":"'COMPETITIVE ALTERNATIVES'!D8","v":7},33,"B","7",7,7.4,"Solutions"]
[4,{"$f":"'COMPETITIVE ALTERNATIVES'!C9","v":"C"},"Solutions",{"$f":"'COMPETITIVE ALTERNATIVES'!F9","v":"DEMO LEVEL (TRL6)"},{"$f":"'COMPETITIVE ALTERNATIVES'!D9","v":8},16,"C","6",6,8.4,"Solutions"]
[5,{"$f":"'COMPETITIVE ALTERNATIVES'!C10","v":"D"},"Solutions",{"$f":"'COMPETITIVE ALTERNATIVES'!F10","v":"COMMERCIAL SCALE (TRL9)"},{"$f":"'COMPETITIVE ALTERNATIVES'!D10","v":8},22,"D","9",9,8.4,"Solutions"]
[6,{"$f":"'COMPETITIVE ALTERNATIVES'!C11","v":"E"},"Solutions",{"$f":"'COMPETITIVE ALTERNATIVES'!F11","v":"COMMERCIAL SCALE (TRL9)"},{"$f":"'COMPETITIVE ALTERNATIVES'!D11","v":3},22,"E","9",9,3.4,"Solutions"]
[7,{"$f":"'COMPETITIVE ALTERNATIVES'!C12","v":"F"},"Solutions",{"$f":"'COMPETITIVE ALTERNATIVES'!F12","v":"INDUSTRIALLY RELEVANT LEVEL (TRL7-8)"},{"$f":"'COMPETITIVE ALTERNATIVES'!D12","v":4},33,"F","7",7,4.4000000000000004,"Solutions"]
[8,{"$f":"'COMPETITIVE ALTERNATIVES'!C13","v":"G"},"Solutions",{"$f":"'COMPETITIVE ALTERNATIVES'!F13","v":"INDUSTRIALLY RELEVANT LEVEL (TRL7-8)"},{"$f":"'COMPETITIVE ALTERNATIVES'!D13","v":3},33,"G","7",7,3.4,"Solutions"]
[9,{"$f":"'COMPETITIVE ALTERNATIVES'!C14","v":"H"},"Solutions",{"$f":"'COMPETITIVE ALTERNATIVES'!F14","v":"COMMERCIAL SCALE (TRL9)"},{"$f":"'COMPETITIVE ALTERNATIVES'!D14","v":8},22,"H","9",9,8.4,"Solutions"]
[10,{"$f":"'COMPETITIVE ALTERNATIVES'!C15","v":"I"},"Solutions",{"$f":"'COMPETITIVE ALTERNATIVES'!F15","v":"COMMERCIAL SCALE (TRL9)"},{"$f":"'COMPETITIVE ALTERNATIVES'!D15","v":5},22,"I","9",9,5.4,"Solutions"]
[11,{"$f":"'COMPETITIVE TECHNOLOGIES'!C20","v":"A"},"Technologies",{"$f":"'COMPETITIVE TECHNOLOGIES'!F20","v":"INDUSTRIALLY RELEVANT LEVEL (TRL7-8)"},{"$f":"'COMPETITIVE TECHNOLOGIES'!D5","v":10},33,"A","7",7,{"$f":"E12+0.2","v":10.199999999999999},"Technologies"]
[12,{"$f":"'COMPETITIVE TECHNOLOGIES'!C21","v":"B"},"Technologies",{"$f":"'COMPETITIVE TECHNOLOGIES'!F21","v":"DEMO LEVEL (TRL6)"},{"$f":"'COMPETITIVE TECHNOLOGIES'!D6","v":9},16,"B","6",6,{"$f":"E13+0.2","v":9.1999999999999993},"Technologies"]
[13,{"$f":"'COMPETITIVE TECHNOLOGIES'!C22","v":"C"},"Technologies",{"$f":"'COMPETITIVE TECHNOLOGIES'!F22","v":"LAB LEVEL (TRL5)"},{"$f":"'COMPETITIVE TECHNOLOGIES'!D7","v":8},15,"C","5",5,8.1999999999999993,"Technologies"]
[14,{"$f":"'COMPETITIVE TECHNOLOGIES'!C23","v":"D"},"Technologies",{"$f":"'COMPETITIVE TECHNOLOGIES'!F23","v":"DEMO LEVEL (TRL6)"},{"$f":"'COMPETITIVE TECHNOLOGIES'!D8","v":7},16,"D","6",6,7.2,"Technologies"]
[15,{"$f":"'COMPETITIVE TECHNOLOGIES'!C24","v":"E"},"Technologies",{"$f":"'COMPETITIVE TECHNOLOGIES'!F24","v":"DEMO LEVEL (TRL6)"},{"$f":"'COMPETITIVE TECHNOLOGIES'!D9","v":6},16,"E","6",6,6.2,"Technologies"]
[16,{"$f":"'COMPETITIVE TECHNOLOGIES'!C25","v":"F"},"Technologies",{"$f":"'COMPETITIVE TECHNOLOGIES'!F25","v":"LAB LEVEL (TRL5)"},{"$f":"'COMPETITIVE TECHNOLOGIES'!D10","v":5},15,"F","5",5,5.2,"Technologies"]
[17,{"$f":"'COMPETITIVE TECHNOLOGIES'!C26","v":"G"},"Technologies",{"$f":"'COMPETITIVE TECHNOLOGIES'!F26","v":"LAB LEVEL (TRL5)"},{"$f":"'COMPETITIVE TECHNOLOGIES'!D11","v":4},15,"G","5",5,4.2,"Technologies"]
[18,{"$f":"'COMPETITIVE TECHNOLOGIES'!C27","v":"H"},"Technologies",{"$f":"'COMPETITIVE TECHNOLOGIES'!F27","v":"DEMO LEVEL (TRL6)"},{"$f":"'COMPETITIVE TECHNOLOGIES'!D12","v":3},16,"H","6",6,3.2,"Technologies"]
[19,{"$f":"'COMPETITIVE TECHNOLOGIES'!C28","v":"I"},"Technologies",{"$f":"'COMPETITIVE TECHNOLOGIES'!F28","v":"INDUSTRIALLY RELEVANT LEVEL (TRL7-8)"},{"$f":"'COMPETITIVE TECHNOLOGIES'!D13","v":2},33,"I","7",7,2.2000000000000002,"Technologies"]
[20,{"$f":"'COMPETITIVE TECHNOLOGIES'!C29","v":"J"},"Technologies",{"$f":"'COMPETITIVE TECHNOLOGIES'!F29","v":"LAB LEVEL (TRL5)"},{"$f":"'COMPETITIVE TECHNOLOGIES'!D14","v":1},15,"J","5",5,1.2,"Technologies"]
[21,{"$f":"'COMPETITIVE IP & PROJECTS'!C21","v":"PROJECT 1"},"Projects",{"$f":"'COMPETITIVE IP & PROJECTS'!H21","v":"DEMO LEVEL (TRL6)"},{"$f":"'COMPETITIVE IP & PROJECTS'!E21","v":10},16,"PROJECT 1","6",6,{"$f":"E22-0.2","v":9.8000000000000007},"Projects"]
[22,{"$f":"'COMPETITIVE IP & PROJECTS'!C22","v":"AA"},"Projects",{"$f":"'COMPETITIVE IP & PROJECTS'!H22","v":"RESEARCH LEVEL (Up to TRL4)"},{"$f":"'COMPETITIVE IP & PROJECTS'!E22","v":9},26,"AA","4",4,{"$f":"E23-0.2","v":8.8000000000000007},"Projects"]
[23,{"$f":"'COMPETITIVE IP & PROJECTS'!C23","v":"BB"},"Projects",{"$f":"'COMPETITIVE IP & PROJECTS'!H23","v":"RESEARCH LEVEL (Up to TRL4)"},{"$f":"'COMPETITIVE IP & PROJECTS'!E23","v":8},26,"BB","4",4,7.8,"Projects"]
[24,{"$f":"'COMPETITIVE IP & PROJECTS'!C24","v":"CC"},"Projects",{"$f":"'COMPETITIVE IP & PROJECTS'!H24","v":"LAB LEVEL (TRL5)"},{"$f":"'COMPETITIVE IP & PROJECTS'!E24","v":7},15,"CC","5",5,6.8,"Projects"]
[25,{"$f":"'COMPETITIVE IP & PROJECTS'!C25","v":"DD"},"Projects",{"$f":"'COMPETITIVE IP & PROJECTS'!H25","v":"DEMO LEVEL (TRL6)"},{"$f":"'COMPETITIVE IP & PROJECTS'!E25","v":6},16,"DD","6",6,5.8,"Projects"]
[26,{"$f":"'COMPETITIVE IP & PROJECTS'!C26","v":"EE"},"Projects",{"$f":"'COMPETITIVE IP & PROJECTS'!H26","v":"INDUSTRIALLY RELEVANT LEVEL (TRL7-8)"},{"$f":"'COMPETITIVE IP & PROJECTS'!E26","v":5},33,"EE","7",7,4.8,"Projects"]
[27,{"$f":"'COMPETITIVE IP & PROJECTS'!C27","v":"FF"},"Projects",{"$f":"'COMPETITIVE IP & PROJECTS'!H27","v":"COMMERCIAL SCALE (TRL9)"},{"$f":"'COMPETITIVE IP & PROJECTS'!E27","v":4},22,"FF","9",9,3.8,"Projects"]
[28,{"$f":"'COMPETITIVE IP & PROJECTS'!C28","v":"GG"},"Projects",{"$f":"'COMPETITIVE IP & PROJECTS'!H28","v":"DEMO LEVEL (TRL6)"},{"$f":"'COMPETITIVE IP & PROJECTS'!E28","v":3},16,"GG","6",6,2.8,"Projects"]
[29,{"$f":"'COMPETITIVE IP & PROJECTS'!C29","v":"HH"},"Projects",{"$f":"'COMPETITIVE IP & PROJECTS'!H29","v":"LAB LEVEL (TRL5)"},{"$f":"'COMPETITIVE IP & PROJECTS'!E29","v":2},15,"HH","5",5,1.8,"Projects"]
[30,{"$f":"'COMPETITIVE IP & PROJECTS'!C30","v":"II"},"Projects",{"$f":"'COMPETITIVE IP & PROJECTS'!H30","v":"LAB LEVEL (TRL5)"},{"$f":"'COMPETITIVE IP & PROJECTS'!E30","v":1},15,"II","5",5,0.8,"Projects"]
[31,{"$f":"'COMPETITIVE IP & PROJECTS'!C6","v":"IP1"},"IP",{"$f":"'COMPETITIVE IP & PROJECTS'!H6","v":"DEMO LEVEL (TRL6)"},{"$f":"'COMPETITIVE IP & PROJECTS'!E6","v":10},16,"IP1","6",6,{"$f":"E32-0.4","v":9.6},"IP"]
[32,{"$f":"'COMPETITIVE IP & PROJECTS'!C7","v":"IP2"},"IP",{"$f":"'COMPETITIVE IP & PROJECTS'!H7","v":"LAB LEVEL (TRL5)"},{"$f":"'COMPETITIVE IP & PROJECTS'!E7","v":9},15,"IP2","5",5,{"$f":"E33-0.4","v":8.6},"IP"]
[33,{"$f":"'COMPETITIVE IP & PROJECTS'!C8","v":"IP3"},"IP",{"$f":"'COMPETITIVE IP & PROJECTS'!H8","v":"DEMO LEVEL (TRL6)"},{"$f":"'COMPETITIVE IP & PROJECTS'!E8","v":8},16,"IP3","6",6,7.6,"IP"]
[34,{"$f":"'COMPETITIVE IP & PROJECTS'!C9","v":"IP4"},"IP",{"$f":"'COMPETITIVE IP & PROJECTS'!H9","v":"DEMO LEVEL (TRL6)"},{"$f":"'COMPETITIVE IP & PROJECTS'!E9","v":7},16,"IP4","6",6,6.6,"IP"]
[35,{"$f":"'COMPETITIVE IP & PROJECTS'!C10","v":"IP5"},"IP",{"$f":"'COMPETITIVE IP & PROJECTS'!H10","v":"INDUSTRIALLY RELEVANT LEVEL (TRL7-8)"},{"$f":"'COMPETITIVE IP & PROJECTS'!E10","v":6},33,"IP5","7",7,5.6,"IP"]
[36,{"$f":"'COMPETITIVE IP & PROJECTS'!C11","v":"IP6"},"IP",{"$f":"'COMPETITIVE IP & PROJECTS'!H11","v":"COMMERCIAL SCALE (TRL9)"},{"$f":"'COMPETITIVE IP & PROJECTS'!E11","v":5},22,"IP6","9",9,4.5999999999999996,"IP"]
[37,{"$f":"'COMPETITIVE IP & PROJECTS'!C12","v":"IP7"},"IP",{"$f":"'COMPETITIVE IP & PROJECTS'!H12","v":"INDUSTRIALLY RELEVANT LEVEL (TRL7-8)"},{"$f":"'COMPETITIVE IP & PROJECTS'!E12","v":4},33,"IP7","7",7,3.6,"IP"]
[38,{"$f":"'COMPETITIVE IP & PROJECTS'!C13","v":"IP8"},"IP",{"$f":"'COMPETITIVE IP & PROJECTS'!H13","v":"INDUSTRIALLY RELEVANT LEVEL (TRL7-8)"},{"$f":"'COMPETITIVE IP & PROJECTS'!E13","v":3},33,"IP8","7",7,2.6,"IP"]
[39,{"$f":"'COMPETITIVE IP & PROJECTS'!C14","v":"IP9"},"IP",{"$f":"'COMPETITIVE IP & PROJECTS'!H14","v":"RESEARCH LEVEL (Up to TRL4)"},{"$f":"'COMPETITIVE IP & PROJECTS'!E14","v":2},26,"IP9","4",4,1.6,"IP"]
[40,{"$f":"'COMPETITIVE IP & PROJECTS'!C15","v":"IP10"},"IP",{"$f":"'COMPETITIVE IP & PROJECTS'!H15","v":"DEMO LEVEL (TRL6)"},{"$f":"'COMPETITIVE IP & PROJECTS'!E15","v":1},16,"IP10","6",6,0.6,"IP"]
[]
[]
["TECH STATUS"]
["Technology name","AVAILABILITY","TRANSFERABILITY","Validation status","Technology name","Availability","RESEARCH LEVEL (Up to TRL4)","LAB LEVEL (TRL5)","DEMO LEVEL (TRL6)","INDUSTRIALLY RELEVANT LEVEL (TRL7-8)","COMMERCIAL SCALE (TRL9)"]
[{"$f":"'COMPETITIVE TECHNOLOGIES'!C20","v":"A"},{"$f":"'COMPETITIVE TECHNOLOGIES'!D20","v":1},{"$f":"'COMPETITIVE TECHNOLOGIES'!E20","v":6},{"$f":"'COMPETITIVE TECHNOLOGIES'!F20","v":"INDUSTRIALLY RELEVANT LEVEL (TRL7-8)"},{"$f":"A46","v":"A"},{"$f":"B46","v":1},{"$f":"IF($D46=G$45,$C46,#N/A)","v":{"$error":"#N/A"}},{"$f":"IF($D46=H$45,$C46,#N/A)","v":{"$error":"#N/A"}},{"$f":"IF($D46=I$45,$C46,#N/A)","v":{"$error":"#N/A"}},{"$f":"IF($D46=J$45,$C46,#N/A)","v":6},{"$f":"IF($D46=K$45,$C46,#N/A)","v":{"$error":"#N/A"}}]
[{"$f":"'COMPETITIVE TECHNOLOGIES'!C21","v":"B"},{"$f":"'COMPETITIVE TECHNOLOGIES'!D21","v":2},{"$f":"'COMPETITIVE TECHNOLOGIES'!E21","v":7},{"$f":"'COMPETITIVE TECHNOLOGIES'!F21","v":"DEMO LEVEL (TRL6)"},{"$f":"A47","v":"B"},2,{"$f":"IF($D47=G$45,$C47,#N/A)","v":{"$error":"#N/A"}},{"$error":"#N/A"},7,{"$error":"#N/A"},{"$error":"#N/A"}]
[{"$f":"'COMPETITIVE TECHNOLOGIES'!C22","v":"C"},{"$f":"'COMPETITIVE TECHNOLOGIES'!D22","v":4},{"$f":"'COMPETITIVE TECHNOLOGIES'!E22","v":9},{"$f":"'COMPETITIVE TECHNOLOGIES'!F22","v":"LAB LEVEL (TRL5)"},"C",4,{"$error":"#N/A"},9,{"$error":"#N/A"},{"$error":"#N/A"},{"$error":"#N/A"}]
[{"$f":"'COMPETITIVE TECHNOLOGIES'!C23","v":"D"},{"$f":"'COMPETITIVE TECHNOLOGIES'!D23","v":4},{"$f":"'COMPETITIVE TECHNOLOGIES'!E23","v":3},{"$f":"'COMPETITIVE TECHNOLOGIES'!F23","v":"DEMO LEVEL (TRL6)"},"D",4,{"$error":"#N/A"},{"$error":"#N/A"},3,{"$error":"#N/A"},{"$error":"#N/A"}]
[{"$f":"'COMPETITIVE TECHNOLOGIES'!C24","v":"E"},{"$f":"'COMPETITIVE TECHNOLOGIES'!D24","v":6},{"$f":"'COMPETITIVE TECHNOLOGIES'!E24","v":5},{"$f":"'COMPETITIVE TECHNOLOGIES'!F24","v":"DEMO LEVEL (TRL6)"},"E",6,{"$error":"#N/A"},{"$error":"#N/A"},5,{"$error":"#N/A"},{"$error":"#N/A"}]
[{"$f":"'COMPETITIVE TECHNOLOGIES'!C25","v":"F"},{"$f":"'COMPETITIVE TECHNOLOGIES'!D25","v":7},{"$f":"'COMPETITIVE TECHNOLOGIES'!E25","v":6},{"$f":"'COMPETITIVE TECHNOLOGIES'!F25","v":"LAB LEVEL (TRL5)"},"F",7,{"$error":"#N/A"},6,{"$error":"#N/A"},{"$error":"#N/A"},{"$error":"#N/A"}]
[{"$f":"'COMPETITIVE TECHNOLOGIES'!C26","v":"G"},{"$f":"'COMPETITIVE TECHNOLOGIES'!D26","v":2},{"$f":"'COMPETITIVE TECHNOLOGIES'!E26","v":4},{"$f":"'COMPETITIVE TECHNOLOGIES'!F26","v":"LAB LEVEL (TRL5)"},"G",2,{"$error":"#N/A"},4,{"$error":"#N/A"},{"$error":"#N/A"},{"$error":"#N/A"}]
[{"$f":"'COMPETITIVE TECHNOLOGIES'!C27","v":"H"},{"$f":"'COMPETITIVE TECHNOLOGIES'!D27","v":7},{"$f":"'COMPETITIVE TECHNOLOGIES'!E27","v":6},{"$f":"'COMPETITIVE TECHNOLOGIES'!F27","v":"DEMO LEVEL (TRL6)"},"H",7,{"$error":"#N/A"},{"$error":"#N/A"},6,{"$error":"#N/A"},{"$error":"#N/A"}]
[{"$f":"'COMPETITIVE TECHNOLOGIES'!C28","v":"I"},{"$f":"'COMPETITIVE TECHNOLOGIES'!D28","v":8},{"$f":"'COMPETITIVE TECHNOLOGIES'!E28","v":9},{"$f":"'COMPETITIVE TECHNOLOGIES'!F28","v":"INDUSTRIALLY RELEVANT LEVEL (TRL7-8)"},"I",8,{"$error":"#N/A"},{"$error":"#N/A"},{"$error":"#N/A"},9,{"$error":"#N/A"}]
[{"$f":"'COMPETITIVE TECHNOLOGIES'!C29","v":"J"},{"$f":"'COMPETITIVE TECHNOLOGIES'!D29","v":10},{"$f":"'COMPETITIVE TECHNOLOGIES'!E29","v":10},{"$f":"'COMPETITIVE TECHNOLOGIES'!F29","v":"LAB LEVEL (TRL5)"},"J",10,{"$error":"#N/A"},10,{"$error":"#N/A"},{"$error":"#N/A"},{"$error":"#N/A"}]